lending/lending_fUSD_20251125
["ID","MTS","AMOUNT","RATE_DAILY","PERIOD"]
[394907033,1764108648776,-151.0,0.00032877,31]
[394907034,1764108648786,-151.0,0.00032877,31]
[394907035,1764108648795,-151.0,0.00032877,31]
[394907036,1764108648805,-151.0,0.00032877,31]
[394907037,1764108648815,-151.0,0.00032877,31]
[394907038,1764108648825,-151.0,0.00032877,31]
[394907039,1764108648834,-151.0,0.00032877,31]
[394907040,1764108648845,-151.0,0.00032877,31]
[394907041,1764108648856,-151.0,0.00032877,31]
[394907042,1764108648866,-151.0,0.00032877,31]
[394907043,1764108648876,-465.168586,0.00032877,31]
[394907044,1764108648887,-151.0,0.00032877,31]
[394907045,1764108648898,-465.168586,0.00032877,31]
[394907046,1764108648908,-465.168586,0.00032877,31]
[394907047,1764108648918,-465.168586,0.00032877,31]
[394907048,1764108648928,-151.0,0.00032877,31]
[394907049,1764108648938,-359.859204,0.00032877,31]
[394907050,1764108648947,-359.859204,0.00032877,31]
[394907051,1764108648957,-359.859204,0.00032877,31]
[394907052,1764108648967,-359.859204,0.00032877,31]
[394907053,1764108648976,-151.03336104,0.00032886,15]
[394907054,1764108648985,-1083.31835,0.00032903,2]
[394907055,1764108648995,-9104.50251512,0.00032959,2]
[394907056,1764108649006,-1542.27907049,0.00033,2]
[394907057,1764108649017,-151.99238664,0.00033,2]
[394907058,1764108649026,-500.0,0.00033014,2]
[394907059,1764108649035,-500.0,0.00033151,2]
[394907060,1764108649044,-439.98,0.00033165,2]
[394907061,1764108649053,-322.0,0.000332,2]
[394907062,1764108649063,-500.0,0.00033288,2]
[394907063,1764108649072,-800.0,0.00033294,7]
[394907064,1764108649082,-2358.95365454,0.00033366,3]
[394907065,1764108649092,-300.260531,0.00033376,63]
[394907066,1764108649101,-500.0,0.00033425,2]
[394907067,1764108649111,-1000.0,0.00033454,2]
[394907068,1764108649120,-1199.11431279,0.000335,2]
[394907069,1764108649130,-500.0,0.00033562,2]
[394907070,1764108649139,-500.0,0.00033699,2]
[394907071,1764108649148,-152.0,0.00033753,3]
[394907072,1764108649159,-500.0,0.00033836,2]
[394907073,1764108649170,-732.61490149,0.00033876,2]
[394907074,1764108649179,-500.0,0.00033973,2]
[394907075,1764108649188,-500.0,0.0003411,2]
[394907076,1764108649198,-500.0,0.00034116,7]
[394907077,1764108649207,-382.341321,0.00034116,31]
[394907078,1764108649217,-382.341321,0.00034116,31]
[394907079,1764108649226,-382.341321,0.00034116,31]
[394907080,1764108649235,-382.341321,0.00034116,31]
[394907081,1764108649245,-417.4,0.00034247,2]
[394907082,1764108649254,-500.0,0.00034247,2]
[394907083,1764108649264,-2358.95365454,0.00034288,3]
[394907084,1764108649274,-151.0,0.00034298,31]
[394907085,1764108649283,-151.0,0.00034298,31]
[394907086,1764108649292,-151.0,0.00034298,31]
[394907087,1764108649301,-274.660546,0.00034298,31]
[394907088,1764108649311,-151.0,0.00034298,31]
[394907089,1764108649320,-151.0,0.00034298,31]
[394907090,1764108649330,-151.0,0.00034298,31]
[394907091,1764108649339,-151.0,0.00034298,31]
[394907092,1764108649348,-151.0,0.00034298,31]
[394907093,1764108649358,-221.409639,0.00034298,31]
[394907094,1764108649367,-9104.50251512,0.00034298,2]
[394907095,1764108649377,-151.03336104,0.00034379,15]
[394907096,1764108649386,-500.0,0.00034382,2]
[394907097,1764108649395,-12396.65042172,0.00034383,2]
[394907098,1764108649403,-500.0,0.00034384,2]
[394907099,1764108649413,-2358.95365454,0.0003448,3]
[394907100,1764108649422,-1713.12055811,0.0003449,2]
[394907101,1764108649431,-500.0,0.00034521,2]
[394907102,1764108649440,-500.0,0.00034521,2]
[394907103,1764108649449,-500.0,0.00034658,2]
[394907104,1764108649458,-200.0,0.00034717,5]
[394907105,1764108649467,-151.0,0.00034769,31]
[394907106,1764108649476,-151.0,0.00034769,31]
[394907107,1764108649485,-506.26410718,0.00034795,2]
[394907108,1764108649494,-151.0,0.00034903,31]
[394907109,1764108649503,-151.0,0.00034903,31]
[394907110,1764108649512,-151.0,0.00034903,31]
[394907111,1764108649526,-151.0,0.00034903,31]
[394907112,1764108649535,-151.0,0.00034903,31]
[394907113,1764108649544,-151.0,0.00034903,31]
[394907114,1764108649553,-151.0,0.00034903,31]
[394907115,1764108649563,-187.757036,0.00034903,31]
[394907116,1764108649572,-173.37188,0.00034903,31]
[394907117,1764108649581,-151.0,0.00034903,31]
[394907118,1764108649590,-151.0,0.00034903,31]
[394907119,1764108649600,-166.821045,0.00034903,31]
[394907120,1764108649610,-151.0,0.00034903,31]
[394907121,1764108649619,-166.821045,0.00034903,31]
[394907122,1764108649629,-151.0,0.00034903,31]
[394907123,1764108649639,-166.821045,0.00034903,31]
[394907124,1764108649648,-166.821045,0.00034903,31]
[394907125,1764108649657,-314.875119,0.00034903,31]
[394907126,1764108649666,-314.875119,0.00034903,31]
[394907127,1764108649675,-314.875119,0.00034903,31]
[394907128,1764108649684,-314.875116,0.00034903,31]
[394907129,1764108649693,-1320.0,0.00034903,2]
[394907130,1764108649702,-561.0,0.00034903,2]
[394907131,1764108649712,-6500.0,0.00034903,2]
[394907132,1764108649721,-252.0,0.00034903,2]
[394907133,1764108649731,-800.0,0.00034938,7]
[394907134,1764108649740,-2358.95365454,0.0003499,3]
[394907135,1764108649749,-403.07157234,0.00035,2]
[394907136,1764108649759,-151.0,0.00035009,14]
[394907137,1764108649768,-151.0,0.00035009,10]
[394907138,1764108649777,-151.0,0.00035009,10]
[394907139,1764108649786,-151.0,0.00035009,10]
[394907140,1764108649795,-151.0,0.00035009,31]
[394907141,1764108649804,-151.0,0.00035009,31]
[394907142,1764108649813,-151.0,0.00035009,31]
[394907143,1764108649822,-184.227268,0.00035009,31]
[394907144,1764108649831,-228.232968,0.00035009,31]
[394907145,1764108649840,-151.0,0.00035009,31]
[394907146,1764108649850,-151.0,0.00035009,31]
[394907147,1764108649859,-151.0,0.00035009,31]
[394907148,1764108649868,-151.0,0.00035009,31]
[394907149,1764108649878,-465.168586,0.00035009,31]
[394907150,1764108649887,-151.0,0.00035009,31]
[394907151,1764108649896,-465.168586,0.00035009,31]
[394907152,1764108649905,-465.168586,0.00035009,31]
[394907153,1764108649915,-465.168586,0.00035009,31]
[394907154,1764108649927,-359.859204,0.00035009,31]
[394907155,1764108649937,-359.859204,0.00035009,31]
[394907156,1764108649949,-359.859204,0.00035009,31]
[394907157,1764108649958,-359.859214,0.00035009,31]
[394907158,1764108649968,-701.83,0.00035009,2]
[394907159,1764108649977,-701.83,0.00035009,2]
[394907160,1764108649989,-701.83,0.00035009,2]
[394907161,1764108649998,-701.83,0.00035009,2]
[394907162,1764108650007,-701.83,0.00035009,2]
[394907163,1764108650016,-274.95,0.00035009,2]
[394907164,1764108650025,-701.83,0.00035009,2]
[394907165,1764108650035,-701.83,0.00035009,2]
[394907166,1764108650045,-701.83,0.00035009,2]
[394907167,1764108650054,-701.83,0.00035009,2]
[394907168,1764108650064,-400.0,0.00035265,5]
[394907169,1764108650073,-459.0,0.0003538,2]
[394907170,1764108650083,-150.0,0.00035557,2]
[394907171,1764108650092,-150.0,0.00035557,2]
[394907172,1764108650102,-150.0,0.00035557,2]
[394907173,1764108650111,-151.78,0.00035557,2]
[394907174,1764108650120,-150.0,0.00035557,2]
[394907175,1764108650130,-150.0,0.00035557,2]
[394907176,1764108650139,-150.0,0.00035557,2]
[394907177,1764108650149,-150.0,0.00035557,2]
[394907178,1764108650159,-150.0,0.00035557,2]
[394907179,1764108650169,-150.0,0.00035557,2]
[394907180,1764108650179,-150.0,0.00035557,2]
[394907181,1764108650189,-150.0,0.00035557,2]
[394907182,1764108650200,-150.0,0.00035557,2]
[394907183,1764108650209,-150.0,0.00035557,2]
[394907184,1764108650218,-150.0,0.00035557,2]
[394907185,1764108650228,-150.0,0.00035557,2]
[394907186,1764108650237,-150.0,0.00035557,2]
[394907187,1764108650246,-300.0,0.00035557,2]
[394907188,1764108650256,-303.01,0.00035557,2]
[394907189,1764108650265,-357.2,0.00035557,2]
[394907190,1764108650275,-150.0,0.00035557,2]
[394907191,1764108650285,-150.0,0.00035561,2]
[394907192,1764108650295,-500.0,0.00035616,2]
[394907193,1764108650304,-236.09,0.00035616,2]
[394907194,1764108650317,-736.7990716,0.00035616,2]
[394907195,1764108650328,-2358.95365454,0.00035628,3]
[394907196,1764108650338,-9104.50251512,0.00035638,2]
[394907197,1764108650348,-500.0,0.00035753,2]
[394907198,1764108650357,-500.0,0.0003576,7]
[394907199,1764108650374,-166.32,0.00035769,120]
[394907200,1764108650383,-699.889334,0.00035813,5]
[394907201,1764108650393,-2358.95365454,0.00035818,3]
[394907202,1764108650403,-407.936704,0.00035828,31]
[394907203,1764108650412,-407.936704,0.00035828,31]
[394907204,1764108650422,-407.936704,0.00035828,31]
[394907205,1764108650431,-407.936699,0.00035828,31]
[394907206,1764108650440,-157.18112,0.00035828,31]
[394907207,1764108650450,-157.18112,0.00035828,31]
[394907208,1764108650459,-157.18112,0.00035828,31]
[394907209,1764108650468,-157.181115,0.00035828,31]
[394907210,1764108650477,-158.481887,0.00035828,31]
[394907211,1764108650628,-151.0,0.00035828,31]
[394907212,1764108650637,-151.0,0.00035828,31]
[394907213,1764108650648,-985.27054269,0.00035853,30]
[394907214,1764108650658,-732.61490149,0.00035867,2]
[394907215,1764108650668,-151.03336104,0.00035872,15]
[394907216,1764108650677,-176.97965966,0.00035872,10]
[394907217,1764108650687,-500.0,0.0003589,2]
[394907218,1764108650696,-199.0,0.0003589,7]
[394907219,1764108650706,-701.83,0.00035968,2]
[394907220,1764108650717,-701.83,0.00035968,2]
[394907221,1764108650728,-701.83,0.00035968,2]
[394907222,1764108650738,-479.24,0.00035968,2]
[394907223,1764108650747,-479.24,0.00035968,2]
[394907224,1764108650756,-478.55,0.00035968,2]
[394907225,1764108650765,-479.24,0.00035968,2]
[394907226,1764108650775,-479.24,0.00035968,2]
[394907227,1764108650785,-479.24,0.00035968,2]
[394907228,1764108650795,-479.24,0.00035968,2]
[394907229,1764108650805,-479.24,0.00035968,2]
[394907230,1764108650815,-479.24,0.00035968,2]
[394907231,1764108650825,-479.24,0.00035968,2]
[394907232,1764108650834,-698.87,0.00035972,2]
[394907233,1764108650844,-479.24,0.00035972,2]
[394907234,1764108650853,-479.24,0.00035972,2]
[394907235,1764108650863,-479.24,0.00035972,2]
[394907236,1764108650872,-479.24,0.00035972,2]
[394907237,1764108650882,-2358.95365454,0.00035979,3]
[394907238,1764108650892,-2358.95365454,0.0003599,3]
[394907239,1764108650902,-500.0,0.00035999,120]
[394907240,1764108650913,-382.341321,0.00035999,31]
[394907241,1764108650926,-382.341321,0.00035999,31]
[394907242,1764108650936,-382.341321,0.00035999,31]
[394907243,1764108650947,-382.341327,0.00035999,31]
[394907244,1764108650956,-4717.90730908,0.00035999,3]
[394907245,1764108650965,-1003.57,0.00036,30]
[394907246,1764108650976,-824.59764669,0.00036,2]
[394907247,1764108650986,-500.0,0.00036,14]
[394907248,1764108650996,-621.88,0.00036,14]
[394907249,1764108651005,-1000.0,0.00036,120]
[394907250,1764108651016,-216.37457649,0.00036,2]
[394907251,1764108651027,-10743.98801333,0.00036,2]
[394907252,1764108651036,-5000.0,0.00036006,2]
[394907253,1764108651046,-25000.0,0.00036009,2]
[394907254,1764108651056,-155.601441,0.00036009,31]
[394907255,1764108651067,-500.0,0.00036027,2]
[394907256,1764108651076,-618.97,0.00036033,2]
[394907257,1764108651086,-270.91005749,0.00036039,30]
[394907258,1764108651095,-5000.0,0.00036063,2]
[394907259,1764108651106,-2358.95365454,0.00036071,3]
[394907260,1764108651116,-12396.65042172,0.00036081,2]
[394907261,1764108651130,-5000.0,0.00036086,2]
[394907262,1764108651140,-5000.0,0.00036088,2]
[394907263,1764108651149,-2358.95365454,0.0003609,3]
[394907264,1764108651158,-5000.0,0.0003612,2]
[394907265,1764108651168,-2358.95365454,0.00036129,3]
[394907266,1764108651177,-2358.95365454,0.00036132,3]
[394907267,1764108651188,-151.0,0.00036132,31]
[394907268,1764108651198,-151.0,0.00036132,31]
[394907269,1764108651209,-5000.0,0.00036139,2]
[394907270,1764108651219,-25000.0,0.00036142,2]
[394907271,1764108651229,-2358.95365454,0.00036146,3]
[394907272,1764108651238,-1480.89,0.00036154,2]
[394907273,1764108651247,-5000.0,0.00036156,2]
[394907274,1764108651256,-2358.95365454,0.00036158,3]
[394907275,1764108651266,-500.0,0.00036164,2]
[394907276,1764108651275,-4717.90730908,0.00036164,3]
[394907277,1764108651284,-5000.0,0.00036164,2]
[394907278,1764108651293,-5000.0,0.00036168,2]
[394907279,1764108651302,-500.0,0.00036171,2]
[394907280,1764108651312,-5000.0,0.00036172,2]
[394907281,1764108651321,-666.0,0.00036173,30]
[394907282,1764108651330,-5000.0,0.00036174,2]
[394907283,1764108651339,-25000.0,0.00036174,2]
[394907284,1764108651348,-5000.0,0.00036176,2]
[394907285,1764108651357,-5000.0,0.00036207,2]
[394907286,1764108651366,-2358.95365454,0.00036242,3]
[394907287,1764108651375,-4634.2,0.00036252,2]
[394907288,1764108651384,-1852.86533734,0.00036268,2]
[394907289,1764108651393,-5000.0,0.00036269,2]
[394907290,1764108651403,-4717.90730908,0.00036282,3]
[394907291,1764108651411,-25000.0,0.00036292,2]
[394907292,1764108651421,-500.0,0.00036301,2]
[394907293,1764108651431,-2540.67,0.00036353,2]
[394907294,1764108651440,-2358.95365454,0.00036366,3]
[394907295,1764108651450,-2358.95365454,0.00036368,3]
[394907296,1764108651459,-2358.95365454,0.00036369,3]
[394907297,1764108651468,-5000.0,0.00036376,2]
[394907298,1764108651477,-5000.0,0.00036378,2]
[394907299,1764108651487,-25000.0,0.00036378,2]
[394907300,1764108651496,-176.97965966,0.00036379,10]
[394907301,1764108651505,-177.69,0.00036379,2]
[394907302,1764108651515,-177.69,0.00036379,2]
[394907303,1764108651528,-551.04,0.00036379,2]
[394907304,1764108651538,-150.0,0.00036379,2]
[394907305,1764108651548,-551.34,0.00036379,2]
[394907306,1764108651559,-177.69,0.00036379,2]
[394907307,1764108651569,-177.69,0.00036379,2]
[394907308,1764108651579,-551.34,0.00036379,2]
[394907309,1764108651588,-177.69,0.00036379,2]
[394907310,1764108651598,-551.34,0.00036379,2]
[394907311,1764108651610,-177.69,0.00036379,2]
[394907312,1764108651619,-551.34,0.00036379,2]
[394907313,1764108651628,-150.0,0.00036379,2]
[394907314,1764108651640,-177.69,0.00036379,2]
[394907315,1764108651650,-169.8,0.00036379,2]
[394907316,1764108651660,-177.69,0.00036379,2]
[394907317,1764108651670,-169.8,0.00036379,2]
[394907318,1764108651680,-169.53,0.00036379,2]
[394907319,1764108651690,-169.8,0.00036379,2]
[394907320,1764108651699,-169.8,0.00036379,2]
[394907321,1764108651708,-169.8,0.00036379,2]
[394907322,1764108651718,-169.8,0.00036379,2]
[394907323,1764108651727,-834.5,0.00036379,2]
[394907324,1764108651737,-177.69,0.00036379,2]
[394907325,1764108651747,-177.69,0.00036379,2]
[394907326,1764108651756,-177.69,0.00036379,2]
[394907327,1764108651766,-341.25,0.00036379,2]
[394907328,1764108651775,-551.67,0.00036379,2]
[394907329,1764108651785,-417.6,0.00036379,2]
[394907330,1764108651794,-301.15,0.00036383,2]
[394907331,1764108651804,-150.0,0.00036383,2]
[394907332,1764108651814,-150.0,0.00036383,2]
[394907333,1764108651823,-1100.88,0.00036383,2]
[394907334,1764108651835,-169.8,0.00036383,2]
[394907335,1764108651844,-169.8,0.00036383,2]
[394907336,1764108651854,-169.8,0.00036383,2]
[394907337,1764108651863,-2540.68,0.00036385,2]
[394907338,1764108651872,-160.75,0.00036395,2]
[394907339,1764108651882,-603.04,0.000364,14]
[394907340,1764108651891,-500.0,0.00036438,2]
[394907341,1764108651900,-199.0,0.00036438,8]
[394907342,1764108651910,-2358.95365454,0.00036447,4]
[394907343,1764108651919,-5000.0,0.00036457,2]
[394907344,1764108651928,-658.11,0.00036476,2]
[394907345,1764108651938,-5000.0,0.00036512,2]
[394907346,1764108651947,-5000.0,0.00036518,2]
[394907347,1764108651957,-2358.95365454,0.00036529,4]
[394907348,1764108651966,-2358.95365454,0.00036539,4]
[394907349,1764108651976,-2358.95365454,0.00036545,4]
[394907350,1764108651986,-25000.0,0.00036549,2]
[394907351,1764108651995,-5000.0,0.00036551,2]
[394907352,1764108652005,-5000.0,0.00036565,2]
[394907353,1764108652015,-555.29,0.00036565,2]
[394907354,1764108652024,-500.0,0.00036575,2]
[394907355,1764108652033,-800.0,0.00036582,7]
[394907356,1764108652043,-5000.0,0.0003659,2]
[394907357,1764108652052,-1663.15,0.00036596,2]
[394907358,1764108652063,-2358.95365454,0.00036616,4]
[394907359,1764108652072,-5000.0,0.00036626,2]
[394907360,1764108652082,-5000.0,0.00036641,2]
[394907361,1764108652092,-2358.95365454,0.00036662,4]
[394907362,1764108652101,-2500.0,0.00036664,2]
[394907363,1764108652111,-5000.0,0.00036672,2]
[394907364,1764108652120,-500.0,0.00036675,2]
[394907365,1764108652130,-3005.90625565,0.00036675,2]
[394907366,1764108652139,-5000.0,0.00036676,2]
[394907367,1764108652149,-2358.95365454,0.00036684,4]
[394907368,1764108652159,-3143.61,0.00036689,2]
[394907369,1764108652168,-4580.83,0.00036694,2]
[394907370,1764108652178,-5000.0,0.00036697,2]
[394907371,1764108652187,-5058.15,0.000367,14]
[394907372,1764108652197,-5000.0,0.00036702,2]
[394907373,1764108652206,-2358.95365454,0.0003671,4]
[394907374,1764108652216,-500.0,0.00036712,2]
[394907375,1764108652225,-1003.57,0.0003672,30]
[394907376,1764108652235,-793.71307452,0.00036732,2]
[394907377,1764108652244,-5000.0,0.00036742,2]
[394907378,1764108652253,-1592.99206404,0.000368,2]
[394907379,1764108652262,-1933.49967317,0.000368,2]
[394907380,1764108652272,-2358.95365454,0.00036811,4]
[394907381,1764108652282,-4431.0,0.00036817,2]
[394907382,1764108652292,-25000.0,0.00036831,2]
[394907383,1764108652301,-5000.0,0.00036848,2]
[394907384,1764108652311,-242.54322192,0.00036849,2]
[394907385,1764108652321,-6782.59,0.00036868,2]
[394907386,1764108652331,-5000.0,0.0003687,2]
[394907387,1764108652340,-5000.0,0.00036882,2]
[394907388,1764108652349,-176.97965966,0.00036886,11]
[394907389,1764108652359,-5000.0,0.00036897,2]
[394907390,1764108652368,-13977.07284834,0.0003691,2]
[394907391,1764108652377,-5000.0,0.00036915,2]
[394907392,1764108652387,-5000.0,0.00036919,2]
[394907393,1764108652396,-941.53,0.00036927,2]
[394907394,1764108652405,-9104.50251512,0.00036977,2]
[394907395,1764108652414,-199.0,0.00036986,9]
[394907396,1764108652423,-500.0,0.00036986,120]
[394907397,1764108652433,-28321.16907074,0.00037,2]
[394907398,1764108652443,-163.8302656,0.00037,2]
[394907399,1764108652458,-1359.2699481,0.00037,30]
[394907400,1764108652467,-603.04,0.00037,14]
[394907401,1764108652476,-1852.86533732,0.00037197,2]
[394907402,1764108652486,-181.84139403,0.000372,120]
[394907403,1764108652495,-408.82,0.00037201,2]
[394907404,1764108652505,-835.0,0.00037201,2]
[394907405,1764108652514,-417.6,0.00037201,2]
[394907406,1764108652526,-305.86,0.00037201,2]
[394907407,1764108652536,-417.6,0.00037201,2]
[394907408,1764108652546,-169.71,0.00037201,2]
[394907409,1764108652555,-417.6,0.00037201,2]
[394907410,1764108652567,-417.6,0.00037201,2]
[394907411,1764108652576,-417.6,0.00037201,2]
[394907412,1764108652585,-417.6,0.00037201,2]
[394907413,1764108652597,-417.6,0.00037201,2]
[394907414,1764108652609,-417.6,0.00037201,2]
[394907415,1764108652618,-169.8,0.00037205,2]
[394907416,1764108652628,-169.8,0.00037205,2]
[394907417,1764108652638,-168.83,0.00037205,2]
[394907418,1764108652647,-417.6,0.00037205,2]
[394907419,1764108652656,-229.84,0.00037205,2]
[394907420,1764108652666,-417.6,0.00037205,2]
[394907421,1764108652675,-151.03336104,0.00037364,15]
[394907422,1764108652685,-500.0,0.00037404,7]
[394907423,1764108652694,-1003.57,0.0003744,30]
[394907424,1764108652703,-5058.15,0.000375,14]
[394907425,1764108652713,-199.0,0.00037534,10]
[394907426,1764108652723,-603.04,0.000376,14]
[394907427,1764108652732,-12396.65042172,0.0003778,2]
[394907428,1764108652742,-732.61490149,0.00037859,2]
[394907429,1764108652751,-1320.0,0.00037903,2]
[394907430,1764108652760,-561.0,0.00037903,2]
[394907431,1764108652769,-1700.978,0.00037903,2]
[394907432,1764108652779,-252.0,0.00037903,2]
[394907433,1764108652789,-250.0,0.0003795,15]
[394907434,1764108652799,-500.0,0.00037999,2]
[394907435,1764108652808,-50000.0,0.00038,38]
[394907436,1764108652818,-2000.0,0.00038,120]
[394907437,1764108652827,-1095.0,0.00038,25]
[394907438,1764108652837,-1000.0,0.00038,25]
[394907439,1764108652846,-1000.0,0.00038,25]
[394907440,1764108652855,-1002.0,0.00038,10]
[394907441,1764108652864,-1004.0,0.00038,10]
[394907442,1764108652873,-199.0,0.00038082,11]
[394907443,1764108652883,-5058.15,0.000381,14]
[394907444,1764108652892,-1852.86533732,0.00038127,2]
[394907445,1764108652901,-1003.57,0.0003816,120]
[394907446,1764108652910,-800.0,0.00038226,7]
[394907447,1764108652920,-8011.8364335,0.000383,30]
[394907448,1764108652929,-9104.50251512,0.00038316,2]
[394907449,1764108652938,-500.0,0.00038356,2]
[394907450,1764108652948,-500.0,0.00038356,2]
[394907451,1764108652957,-498.3704965,0.00038356,8]
[394907452,1764108652967,-501.03356416,0.00038356,8]
[394907453,1764108652975,-500.0,0.00038356,8]
[394907454,1764108652984,-500.0,0.00038356,8]
[394907455,1764108653029,-500.0,0.00038356,8]
[394907456,1764108653038,-500.0,0.00038356,2]
[394907457,1764108653048,-311.6162619,0.00038356,8]
[394907458,1764108653057,-1405.63,0.00038356,8]
[394907459,1764108653067,-500.0,0.00038356,8]
[394907460,1764108653076,-500.0,0.00038356,8]
[394907461,1764108653086,-607.05947164,0.00038356,8]
[394907462,1764108653095,-209.27158358,0.00038356,8]
[394907463,1764108653104,-1126.44,0.00038356,8]
[394907464,1764108653114,-334.91741214,0.00038356,8]
[394907465,1764108653123,-500.0,0.00038356,8]
[394907466,1764108653132,-500.0,0.00038356,8]
[394907467,1764108653141,-367.05055642,0.00038356,8]
[394907468,1764108653157,-588.42,0.00038356,8]
[394907469,1764108653166,-500.0,0.00038356,8]
[394907470,1764108653176,-500.0,0.00038356,8]
[394907471,1764108653185,-500.0,0.00038356,8]
[394907472,1764108653194,-254.1,0.00038356,8]
[394907473,1764108653203,-197.44950516,0.00038356,8]
[394907474,1764108653212,-434.23774969,0.00038356,8]
[394907475,1764108653222,-504.38583051,0.00038356,8]
[394907476,1764108653231,-506.53,0.00038356,8]
[394907477,1764108653241,-611.33,0.00038356,8]
[394907478,1764108653250,-503.3259346,0.00038356,8]
[394907479,1764108653260,-500.0,0.00038356,8]
[394907480,1764108653269,-500.0,0.00038356,8]
[394907481,1764108653279,-500.0,0.00038356,8]
[394907482,1764108653288,-590.0,0.00038356,8]
[394907483,1764108653297,-500.0,0.00038356,8]
[394907484,1764108653306,-517.6392439,0.00038356,8]
[394907485,1764108653316,-500.0,0.00038356,8]
[394907486,1764108653326,-505.51368061,0.00038356,8]
[394907487,1764108653335,-505.00034287,0.00038356,8]
[394907488,1764108653344,-500.0,0.00038356,8]
[394907489,1764108653353,-506.09699418,0.00038356,8]
[394907490,1764108653363,-508.38864163,0.00038356,8]
[394907491,1764108653372,-507.0475568,0.00038356,8]
[394907492,1764108653381,-500.0,0.00038356,8]
[394907493,1764108653391,-500.0,0.00038356,8]
[394907494,1764108653400,-505.80791251,0.00038356,8]
[394907495,1764108653409,-503.25317059,0.00038356,8]
[394907496,1764108653418,-500.0,0.00038356,8]
[394907497,1764108653427,-517.89611362,0.00038356,8]
[394907498,1764108653436,-503.29341548,0.00038356,8]
[394907499,1764108653445,-500.0,0.00038356,8]
[394907500,1764108653454,-503.09811001,0.00038356,8]
[394907501,1764108653463,-504.87715225,0.00038356,8]
[394907502,1764108653472,-500.61325379,0.00038356,8]
[394907503,1764108653481,-513.37699255,0.00038356,8]
[394907504,1764108653490,-500.0,0.00038356,8]
[394907505,1764108653500,-503.06185091,0.00038356,8]
[394907506,1764108653509,-503.97448417,0.00038356,8]
[394907507,1764108653518,-500.0,0.00038356,8]
[394907508,1764108653532,-511.17730254,0.00038356,8]
[394907509,1764108653540,-507.09628272,0.00038356,8]
[394907510,1764108653549,-503.35570446,0.00038356,8]
[394907511,1764108653559,-550.68988389,0.00038356,8]
[394907512,1764108653568,-550.18413699,0.00038356,8]
[394907513,1764108653577,-511.2869634,0.00038356,8]
[394907514,1764108653586,-502.81990614,0.00038356,8]
[394907515,1764108653597,-535.17039845,0.00038356,8]
[394907516,1764108653609,-500.0,0.00038356,8]
[394907517,1764108653619,-505.83837185,0.00038356,8]
[394907518,1764108653628,-500.0,0.00038356,8]
[394907519,1764108653636,-500.0,0.00038356,8]
[394907520,1764108653645,-530.63145602,0.00038356,8]
[394907521,1764108653655,-504.65122381,0.00038356,8]
[394907522,1764108653664,-518.15676758,0.00038356,8]
[394907523,1764108653673,-485.0,0.00038356,8]
[394907524,1764108653682,-502.6906838,0.00038356,8]
[394907525,1764108653691,-500.0,0.00038356,8]
[394907526,1764108653700,-503.9860899,0.00038356,8]
[394907527,1764108653709,-504.35944916,0.00038356,8]
[394907528,1764108653718,-514.69430563,0.00038356,8]
[394907529,1764108653728,-504.23643586,0.00038356,8]
[394907530,1764108653737,-500.0,0.00038356,8]
[394907531,1764108653746,-514.86955082,0.00038356,8]
[394907532,1764108653755,-500.0,0.00038356,8]